Cogmind - Beta 11 X9 @@@ ROGUE MODE // 2022.01.23 @ 19:04:50 Player: LU-1G1 Result: Destroyed by D-53 Grenadier with Mini Grenade Launcher Performance ------------- Evolutions (0) 0 Regions Visited (4) 800 Robots Destroyed (12) 60 Value Destroyed (238) 238 Prototype IDs (23) 460 Alien Tech Used (0) 0 Bonus (-653) -653 TOTAL SCORE: 905 Bonus ------- Aligned with FarCom 300 Friendly Fire -953 Cogmind --------- Core Integrity 0/250 Matter 285/300 Energy 75/100 System Corruption 0% Temperature Cool (0) Movement Walking (190) Ox1 Location -9/Mines Parts ------- > --- POWER (1) -------- (None) > --- PROPULSION (2) --- Aluminum Leg Aluminum Leg > --- UTILITY (2) ------ High-capacity Storage Unit > --- WEAPON (2) ------- (None) > --- INVENTORY (20) --- Ion Engine Ion Engine Compact Wheel Heat Sink Advanced Heat Sink Small Storage Unit Modified TNC Spread Laser Spread Laser Spread Laser Spread Laser Light Assault Rifle Grenade Launcher Grenade Launcher Grenade Launcher YI-UF0's Doublenader Plasma Cutter Plasma Cutter Peak State ------------ > --- POWER ------------ Improved Ion Engine > --- PROPULSION ------- Light Treads Wheel > --- UTILITY ---------- High-capacity Storage Unit Structural Scanner > --- WEAPON ----------- Medium Laser Small Laser > --- INVENTORY -------- Ion Engine Ion Engine Aluminum Leg Aluminum Leg Compact Wheel Heat Sink Advanced Heat Sink Small Storage Unit Spread Laser Spread Laser Spread Laser Spread Laser Light Assault Rifle Grenade Launcher Grenade Launcher YI-UF0's Doublenader Plasma Cutter Plasma Cutter [Rating: 11] Favorites ----------- Power Improved Ion Engine Engine Improved Ion Engine Propulsion Light Treads Treads Light Treads Leg Aluminum Leg Wheel Wheel Utility Structural Scanner Device Structural Scanner Storage High-capacity Storage Unit Weapon Small Laser Energy Gun Small Laser Build | -11 -10 -10 -10 -9 ------- Run | Scr Mat Min Exi Min Slots Evolved . | . . . . . Power . | . . . . . Propulsion . | . . . . . Utility . | . . . . . Weapon . | . . . . . Parts Attached 17 | 6 9 . . 2 Power 2 | 1 1 . . . Engine 2 | 1 1 . . . Core . | . . . . . Reactor . | . . . . . Propulsion 8 | 2 4 . . 2 Treads 5 | 2 3 . . . Leg 2 | . . . . 2 Wheel 1 | . 1 . . . Hover . | . . . . . Flight . | . . . . . Utility 3 | 1 2 . . . Device 1 | . 1 . . . Storage 2 | 1 1 . . . Processor . | . . . . . Hackware . | . . . . . Protection . | . . . . . Artifact . | . . . . . Weapon 4 | 2 2 . . . Energy Gun 4 | 2 2 . . . Energy Cannon . | . . . . . Ballistic Gun . | . . . . . Ballistic Cannon . | . . . . . Launcher . | . . . . . Special Weapon . | . . . . . Impact Weapon . | . . . . . Slashing Weapon . | . . . . . Piercing Weapon . | . . . . . Special Melee Weapon . | . . . . . Unidentified Prototypes . | . . . . . Parts Lost 8 | . 2 . . 6 Power 1 | . . . . 1 Propulsion 3 | . 1 . . 2 Utility 1 | . . . . 1 Weapon 3 | . 1 . . 2 Highest Loss Streak 6 | . 2 . . 6 Average Slot Usage (%) 94 | . 90 100 100 57 Engine 13 | . 14 14 14 4 Treads 16 | . 20 14 14 9 Wheel 10 | . 6 14 14 4 Device 10 | . 7 14 14 4 Storage 14 | . 14 14 14 14 Energy Gun 27 | . 27 28 28 18 Naked Turns . | . . . . . Heaviest Build 51 | 13 51 51 51 51 Greatest Support 40 | 40 40 10 10 20 Greatest Overweight (x) 16 | . 5 5 5 16 Average Overweight (x) 3 | . 1 5 5 5 Largest Inventory Capacity 20 | 8 20 20 20 20 Average Capacity 15 | 7 11 20 20 20 Most Carried 20 | 6 16 19 20 20 Average Carried 13 | 4 8 16 19 19 Final Capacity 20 | 8 20 20 20 20 Final Carried 20 | 6 16 19 20 18 Class Distribution -------------------- 100% | Mutant Dominant Class ---------------- Mutant | -10/Materials Mutant | -10/Mines Mutant | -10/Exiles Mutant | -9/Mines Resources | -11 -10 -10 -10 -9 ----------- Run | Scr Mat Min Exi Min Matter Collected 345 | 260 55 30 . . Remotely . | . . . . . Salvage Created 426 | . 320 106 . . Parts 21 | . 17 4 . . Haulers Intercepted . | . . . . . Recyclers Shooed . | . . . . . Parts Field Recycled . | . . . . . Retrieved Matter . | . . . . . Parts Self-Destructed . | . . . . . Prevented . | . . . . . Kills | -11 -10 -10 -10 -9 ------- Run | Scr Mat Min Exi Min Combat Hostiles Destroyed 10 | . 10 . . . Guns 9 | . 9 . . . AOE 1 | . 1 . . . Classes Destroyed 3 | . 3 . . . Builder 1 | . 1 . . . Swarmer 5 | . 5 . . . Grunt 5 | . 5 . . . Best Kill Streak 3 | . 3 . . . Combat Bots Only 3 | . 3 . . . Max Kills in Single Turn 1 | . 1 1 . . Gunslinging . | . . . . . Exploded 1 | . 1 . . . Melee . | . . . . . Uniques/NPCs Destroyed 1 | . . 1 . . YI-UF0 (-10/Mines) Combat | -11 -10 -10 -10 -9 -------- Run | Scr Mat Min Exi Min Damage Taken 1181 | . 481 . . 700 Core 279 | . 53 . . 226 Absorbed by Shields . | . . . . . Core Remaining (%) 100 | 100 . . . . Volleys Fired 52 | . 42 10 . . Largest 2 | . 2 2 . . Hottest 90 | . 90 90 . . Shots Fired 81 | . 61 20 . . Gun 81 | . 61 20 . . Cannon . | . . . . . Launcher . | . . . . . Special . | . . . . . Kinetic . | . . . . . Thermal 68 | . 48 20 . . Explosive . | . . . . . Electromagnetic 13 | . 13 . . . Robot Hit Streak 21 | . 21 5 . . Robot Miss Streak 3 | . 3 2 . . Penetration Max . | . . . . . Secondary Targets 2 | . 2 . . . Max Gunslinging Chain 1 | . 1 . . . Shots Hit Robots 57 | . 43 14 . . Core Hits 22 | . 16 6 . . Critical Kills . | . . . . . Critical Parts Destroyed . | . . . . . Critical Strikes 1 | . 1 . . . Burn 1 | . 1 . . . Melee Attacks . | . . . . . Impact . | . . . . . Slashing . | . . . . . Piercing . | . . . . . Sneak Attacks . | . . . . . Combat Hostiles . | . . . . . Follow-up Attacks . | . . . . . Damage Inflicted 708 | . 544 164 . . Guns 677 | . 513 164 . . Cannons . | . . . . . Explosions 31 | . 31 . . . Melee . | . . . . . Ramming . | . . . . . Kinetic . | . . . . . Thermal 542 | . 378 164 . . Explosive . | . . . . . Electromagnetic 166 | . 166 . . . Impact . | . . . . . Slashing . | . . . . . Piercing . | . . . . . Highest Corruption . | . . . . . Average Corruption . | . . . . . Corruption Purged . | . . . . . Overload Shots . | . . . . . Overflow Damage . | . . . . . Projectiles . | . . . . . Explosions . | . . . . . Melee . | . . . . . Knockbacks . | . . . . . Impact . | . . . . . Kinetic . | . . . . . Secondary . | . . . . . Self-Inflicted Damage 46 | . 46 . . . Shots 1 | . 1 . . . Rammed . | . . . . . Targets Rammed 1 | . . . . 1 Kicked 1 | . . . . 1 Crushed . | . . . . . Highest Temperature 297 | . 262 297 . . Average Temperature 104 | . 81 147 . . Received Heat Transfer 153 | . 153 . . . Effects 3 | . 2 1 . . Energy Bleed 1 | . . 1 . . Interference 2 | . 2 . . . Siege Activations . | . . . . . Robots Corrupted . | . . . . . Combat Hostiles . | . . . . . Parts Fried . | . . . . . Impact Corruptions . | . . . . . Robots Melted . | . . . . . Combat Hostiles . | . . . . . Parts Melted 2 | . 2 . . . Heat Transferred 1368 | . 946 422 . . Parts Sabotaged . | . . . . . Parts Stolen . | . . . . . Parts Stripped . | . . . . . Power Chain Reactions 1 | . 1 . . . Missiles Intercepted . | . . . . . Alert | -11 -10 -10 -10 -9 ------- Run | Scr Mat Min Exi Min Peak Influence 296 | . 296 37 . 15 Initial 37 | . . 37 . . Average 89 | . 123 37 . . Maximum Alert Level 1 | . 1 . . . Low Security (%) 86 | 100 79 100 . 100 Level 1 13 | . 20 . . . Level 2 . | . . . . . Level 3 . | . . . . . Level 4 . | . . . . . Level 5 . | . . . . . High Security . | . . . . . Max Security . | . . . . . Squads Dispatched 2 | . 2 . . . Investigation 1 | . 1 . . . Extermination . | . . . . . Reinforcement 1 | . 1 . . . Assault . | . . . . . Garrison . | . . . . . Intercept . | . . . . . Construction Impeded . | . . . . . Haulers Reinforced . | . . . . . Active Scanning Responses . | . . . . . Cargo Convoy Interrupts . | . . . . . Stealth | -11 -10 -10 -10 -9 --------- Run | Scr Mat Min Exi Min Distress Signals . | . . . . . Communications Jammed . | . . . . . Distress Signals . | . . . . . Times Spotted 31 | . 13 . . 18 Peak Tracking Total 11 | . 3 . . 11 Tactical Retreats 1 | . 1 . . . Traps | -11 -10 -10 -10 -9 ------- Run | Scr Mat Min Exi Min Traps Triggered 3 | . 3 . . . Indirectly . | . . . . . Trap Hack Attempts . | . . . . . Triggered . | . . . . . Disarmed . | . . . . . Reprogrammed . | . . . . . Reused . | . . . . . Traps Extracted . | . . . . . Installed . | . . . . . Triggered . | . . . . . Machines | -11 -10 -10 -10 -9 ---------- Run | Scr Mat Min Exi Min Machines Disabled . | . . . . . Max in Single Turn . | . . . . . Machines Sabotaged . | . . . . . Garrisons Compromised . | . . . . . Overloaded Fab Kills . | . . . . . Hacking | -11 -10 -10 -10 -9 --------- Run | Scr Mat Min Exi Min Machines Accessed 6 | . 4 . 2 . Terminals 3 | . 3 . . . Fabricators . | . . . . . Repair Stations 1 | . 1 . . . Recycling Units . | . . . . . Scanalyzers . | . . . . . Garrison Access . | . . . . . Total Hacks 12 | . 10 . 2 . Successful 8 | . 6 . 2 . Failed 4 | . 4 . . . Catastrophic 1 | . 1 . . . Database Lockouts . | . . . . . Manual 6 | . 5 . 1 . Terminals 7 | . 7 . . . Fabricators . | . . . . . Repair Stations 3 | . 3 . . . Recycling Units . | . . . . . Scanalyzers . | . . . . . Garrison Access . | . . . . . Terminal Hacks 5 | . 3 . 2 . Record 1 | . . . 1 . Part Schematic 1 | . 1 . . . Branch Access Points 1 | . 1 . . . Alert Level 1 | . 1 . . . EX-Prototype ID Bank 1 | . . . 1 . Fabricator Hacks . | . . . . . Repair Station Hacks 2 | . 2 . . . Scan Component 1 | . 1 . . . Repair 1 | . 1 . . . Recycling Unit Hacks . | . . . . . Scanalyzer . | . . . . . Garrison Access Hacks . | . . . . . Unauthorized Hacks 1 | . 1 . . . Terminals 1 | . 1 . . . Assimilate 1 | . 1 . . . Fabricators . | . . . . . Repair Stations . | . . . . . Recycling Units . | . . . . . Scanalyzers . | . . . . . Garrison Access . | . . . . . Data Cores Recovered . | . . . . . Used . | . . . . . Hacking Detections 4 | . 4 . . . Full Trace Events . | . . . . . Feedback Events . | . . . . . Feedback Blocked . | . . . . . Robot Schematics Acquired . | . . . . . Robots Built . | . . . . . Authchips . | . . . . . Time . | . . . . . Total Robot Build Rating . | . . . . . Part Schematics Acquired 1 | . 1 . . . Parts Built . | . . . . . Authchips . | . . . . . Time . | . . . . . Total Part Build Rating . | . . . . . Parts Repaired 1 | . 1 . . . Time 26 | . 26 . . . Parts Recycled . | . . . . . Recycled Matter . | . . . . . Retrieved Matter . | . . . . . Retrieved Components . | . . . . . Parts Scanalyzed . | . . . . . Part Schematics Acquired . | . . . . . Parts Damaged . | . . . . . Bothacking | -11 -10 -10 -10 -9 ------------ Run | Scr Mat Min Exi Min Used RIF Installer . | . . . . . Robots Hacked . | . . . . . Non-combat . | . . . . . Combat . | . . . . . Robot Hacks Applied . | . . . . . Relay Couplers Released . | . . . . . Fabnet Peak Effective % . | . . . . . Robots Rewired . | . . . . . Allies Hacked . | . . . . . Hacks Repelled . | . . . . . Allies | -11 -10 -10 -10 -9 -------- Run | Scr Mat Min Exi Min Total Allies 1 | . 1 . . . Largest Group 1 | . 1 . . . Highest-Rated Group 10 | . 10 . . . Highest-Rated Ally 10 | . 10 . . . Total Orders . | . . . . . Ally Attacks . | . . . . . Total Damage . | . . . . . Kills . | . . . . . Allies Corrupted . | . . . . . Allies Melted . | . . . . . Intel | -11 -10 -10 -10 -9 ------- Run | Scr Mat Min Exi Min Robot Analysis Total . | . . . . . Derelict Logs Recovered . | . . . . . Drone Launches . | . . . . . Drone Recoveries . | . . . . . Exploration | -11 -10 -10 -10 -9 ------------- Run | Scr Mat Min Exi Min Turns Passed 1333 | 93 584 171 459 26 Spaces Moved 729 | 51 285 90 296 7 Core 3 | 2 . . . 1 Treads 206 | 49 155 . . 2 Legs . | . . . . . Wheels 520 | . 130 90 296 4 Hover . | . . . . . Flight . | . . . . . Fastest Speed 50 | 50 95 155 155 155 Average Speed 153 | 155 148 155 155 301 Slowest Speed 850 | 160 320 155 155 850 Overloaded Moves . | . . . . . Propulsion Burnouts . | . . . . . Robots Hopped . | . . . . . Cave-ins Triggered . | . . . . . Exploration Rate (%) 30 | 5 51 15 69 10 Regions Visited 4 Branch Regions 3 Pre-discovered Areas 1 | . . . 1 . Known Exits Taken 1 | . 1 . . . Unknown Exits Taken 3 | 1 . 1 1 . Scrap Searched . | . . . . . Spaces Dug . | . . . . . Terrain Destroyed 7 | . 7 . . . Melee . | . . . . . Projectile . | . . . . . AOE 7 | . 7 . . . Terrain Rammed . | . . . . . Walls Destroyed . | . . . . . Machines Disabled . | . . . . . Actions | -11 -10 -10 -10 -9 --------- Run | Scr Mat Min Exi Min Total 854 | 62 383 102 296 11 Wait 33 | . 32 . . 1 Move 725 | 50 284 89 295 7 Hop . | . . . . . Pick Up 23 | 6 13 3 1 . Fast Attach 11 | 6 5 . . . Attach 4 | . 2 . . 2 Detach . | . . . . . Swap 2 | . 2 . . . Drop 3 | . 3 . . . Fire 52 | . 42 10 . . Melee . | . . . . . Ram . | . . . . . Kick 1 | . . . . 1 Crush . | . . . . . Escape Stasis . | . . . . . Rewire . | . . . . . Trap . | . . . . . Miscellaneous . | . . . . . Route ------- -11/Scrapyard -10/Materials (discovered 3 exits: [*Mat x2] / *Min) -10/Mines -10/Exiles -9/Mines History --------- Turn | Location | Event 18 | -11/Scrapyard | Discovered new exit (range 16) 94 | -11/Scrapyard | Entered Materials 313 | -10/Materials | Build established: Mutant 348 | -10/Materials | Discovered new exit (range 5) 492 | -10/Materials | Identified exit to Mines 525 | -10/Materials | Discovered new exit (range 9) 569 | -10/Materials | Repaired Lgt. Treads 678 | -10/Materials | Entered Mines 750 | -10/Mines | YI-UF0 nonchalantly dropped a Grenade Launcher on the ground 774 | -10/Mines | Destroyed YI-UF0 786 | -10/Mines | Found Prototype Launcher 842 | -10/Mines | Deemed a non-threat by the Exiles lab entrance 842 | -10/Mines | Discovered new exit (range 6) 849 | -10/Mines | Entered Exiles 888 | -10/Exiles | Met 8R-AWN 911 | -10/Exiles | Met EX-HEX 1011 | -10/Exiles | Met EX-DEC 1037 | -10/Exiles | Learned location of Zion (-6) 1070 | -10/Exiles | Met EX-BIN 1088 | -10/Exiles | Aligned with FarCom system 1090 | -10/Exiles | Given EX-Vault access code 1127 | -10/Exiles | Opened EX-Vault 1139 | -10/Exiles | Found Modified TNC 1173 | -10/Exiles | Warned to stay clear of 0b10 Research branches 1191 | -10/Exiles | Exiles lab attacked by MAIN.C 1294 | -10/Exiles | Discovered new exit (range 11) 1308 | -10/Exiles | Left Exiles lab with Modified TNC 1308 | -10/Exiles | Entered Mines 1309 | -9/Mines | Assembled infested the area 1322 | -9/Mines | Core integrity fell below 50% 1324 | -9/Mines | Met a Derelict bent on vengeance 1331 | -9/Mines | Core integrity fell below 20% 1334 | -9/Mines | Destroyed by D-53 Grenadier with Mini Grenade Launcher Last Messages --------------- 01326_ K-01 Serf destroyed. 01327_ U-05 Engineer builds a Wall. 01328_ The unstable cave ceiling collapses. 01328_ as-56878 destroyed. 01328_ as-34123 destroyed. 01328_ Lgt. Treads destroyed. 01329_ K-01 Serf collects debris. 01329_ U-05 Engineer lays Concrete. 01329_ R-06 Scavenger collects Med. Matter Pod. 01330_ U-05 Engineer lays Concrete. 01330_ as-43259 destroyed. 01330_ as-92880 destroyed. 01330_ R-06 Scavenger destroyed. 01331_ U-05 Engineer lays Concrete. 01332_ The unstable cave ceiling collapses. 01332_ U-05 Engineer lays Concrete. 01333_ The unstable cave ceiling collapses. 01333_ Kicked D-53 Grenadier. 01333_ K-01 Serf collects debris. 01333_ U-05 Engineer lays Concrete. Map ----- +----------------------------------------------------+ | ?????????????????????????????????????????????????? | | ?????????????????????????????????????????????????? | | ?????????????????????????????????????????????????? | | ?????????????????????????????????????????????????? | | ?????????????????????????????????????????????????? | | ?????????????????????????????????????????????????? | | ?????????????????????????????????????????????????? | | ?????????????????????????????????????????????????? | | ?????????????????????????????????????????????????? | | ?????????????????????????????????????????????????? | | ?????????????????????????????????????????????????? | | ?????????????????????????????????????????????????? | | ?????????????????????????????????????????????????? | | ?????????????????????????????????????????????????? | | ?????????????????????????????????????????????????? | | ?????????????????????????????????????????????????? | | ?????????????????????????????????????????????????? | | ?????????????????????????????????????????????????? | | ????????????????????#######??????????????????????? | | ????????????? ????#########????#????????????????? | | ???????????## ??### ###### ##???????????????? | | ???????????## ## ##??????????????? | | ???????????## ## #??????????????? | | ???????????###?## u%d ###????????????? | | ???????????????## ! ur= # # ###????????????? | | ???????????????## d@ aa%aa ##????????????? | | ???????????????## !!!! ##????????????? | | ???????????????## k !! a a ??????????? | | ???????????????## # ##### ?????????? | | ???????????????###### # ##??????????????? | | ???????????????##### ###?#???????????????? | | ??????????????????# #???????????????????? | | ????????????????? ???????????????????? | | ??????????????? #??????????????????? | | ??????????????? ##??????????????????? | | ?????????????? t #### #???????????????????? | | ?????????????? #???? #???????????????????? | | ???????????????? ????? #???????????????????? | | ??????????????????# ????? #???????????????????? | | ???????????????????? ?????? #???????????????????? | | ???????????????????????????? ????????????????????? | | ???????????????????????????? ????????????????????? | | ?????????????????????????????????????????????????? | | ?????????????????????????????????????????????????? | | ?????????????????????????????????????????????????? | | ?????????????????????????????????????????????????? | | ?????????????????????????????????????????????????? | | ?????????????????????????????????????????????????? | | | | | +----------------------------------------------------+ Best States ------------- Heat Dissipation 25 Energy Generation 12 Energy Capacity 265 Matter Stores 300 Matter Capacity 300 Sight Range 16 Terrain Scan Density 10 Evasion (%) 41 Recoil Reduction 2 Item Schematics ----------------- Med. Storage Unit | -10/Materials | Hacked Robot Schematics ------------------ None Fabricated ------------ Nothing Alien Tech Used ----------------- None Achievements -------------- None Challenges ------------ None Game ------ Seed NullAssaultNullifier Manual? 0 Play Time 00:06:58 Cumulative 440.8 hours Start 2022.01.23 @ 16:39:38 End 2022.01.23 @ 19:04:50 Sessions 2 Manual Loads 0 Difficulty Rogue Special Mode None Game No. 430 Rogue 215 Adventurer 112 Explorer 103 Win Type - Total 29 Types 21/0/5/2/0/0/0/1/0 Lore% 86 Gallery% 90 Achievement% 80 Wizard Run 0 Options --------- ASCII 0 Keyboard 1 Movement Vi Keybinds 1 Fullscreen 2 Font 18/SmallcapsGlow Map View 76x50 Tactical HUD 1 Map Filters NONE Filters NONE Steam 1 RUN: ec26d87a-54b9-4af6-b57f-d79a19f5a47d